bitfinex-derivatives/quotes_ETHF0:USTF0_20250213
["timestamp","ask_amount","ask_price","bid_price","bid_amount"]
[1739450047229,6.74999,2666.3,2666.2,0.00562662]
[1739450047431,0.75013,2665.8,2665.7,3.2078]
[1739450047657,3.33275591,2666.1,2665.7,3.2078]
[1739450047838,8.41551591,2666.4,2665.7,3.2078]
[1739450048139,0.75006,2666.1,2665.7,3.2078]
[1739450048436,0.57972515,2666.3,2666.2,0.75002]
[1739450048641,0.57972515,2666.3,2665.7,3.2078]
[1739450048834,0.57972515,2666.3,2666.2,0.75002]
[1739450049031,0.00562662,2666.5,2666.0,3.2078]
[1739450049233,0.00562662,2666.5,2666.4,0.74996]
[1739450049638,0.00562662,2666.5,2666.4,41.54996]
[1739450049938,0.00562662,2666.5,2666.4,44.88271591]
[1739450050137,6.62e-06,2666.5,2666.4,44.88271591]
[1739450050843,0.74977,2667.1,2666.4,44.13275591]
[1739450051038,0.74975,2667.2,2666.9,0.74981]
[1739450051241,0.57868983,2667.4,2666.7,1.733]
[1739450051435,0.74974,2667.2,2667.0,0.74979]
[1739450051636,0.57868983,2667.4,2666.7,1.733]
[1739450051832,0.74975,2667.2,2666.7,1.733]
[1739450052036,0.74975,2667.2,2666.9,0.7498]
[1739450052649,0.57868983,2667.4,2666.7,1.733]
[1739450052852,3.78648983,2667.5,2667.0,0.74978]
[1739450053138,0.74972,2667.3,2667.1,0.74975]
[1739450053541,0.57868983,2667.4,2667.2,0.74972]
[1739450053741,0.57868983,2667.4,2667.0,0.00562662]
[1739450053940,1.32836983,2667.4,2667.2,0.74972]
[1739450054137,3.2078,2667.5,2667.4,0.74968]
[1739450054138,3.78648983,2667.5,2667.4,0.74968]
[1739450054443,0.57868983,2667.5,2667.4,0.74968]
[1739450054639,3.2078,2667.8,2667.3,3.33275591]
[1739450054834,0.7496,2667.7,2667.5,0.74964]
[1739450055142,3.2078,2667.8,2667.3,3.33275591]
[1739450055441,3.2078,2667.8,2667.4,1.732]
[1739450055647,3.2078,2667.8,2667.5,0.74965]
[1739450055648,0.74961,2667.7,2667.5,0.74965]
[1739450056239,3.2078,2667.8,2667.7,0.7496]
[1739450057033,3.2078,2667.8,2667.4,3.6062]
[1739450057034,0.74949,2668.1,2667.6,1.87407]
[1739450057241,6.54055591,2668.3,2668.1,0.74947]
[1739450057438,0.74945,2668.2,2668.0,0.7495]
[1739450057640,3.33275591,2668.6,2667.8,3.2078]
[1739450057841,0.74933,2668.7,2668.5,0.74935]
[1739450058044,3.2078,2668.8,2668.5,0.74935]
[1739450058239,3.78526689,2668.8,2668.3,0.00562662]
[1739450058639,0.7494,2668.4,2668.3,0.00562662]
[1739450059249,0.74937,2668.5,2668.3,0.75504662]
[1739450059450,0.7494,2668.4,2668.3,0.00562662]
[1739450060347,6.0,2668.4,2667.3,6.54055591]
[1739450060545,0.74967,2667.5,2667.3,6.54055591]
[1739450060946,0.74968,2667.4,2667.3,3.2078]
[1739450061246,3.2078,2667.8,2667.0,8.27255591]
[1739450061643,0.00562662,2667.7,2667.1,0.00562662]
[1739450061850,0.74969,2667.4,2667.2,0.74973]
[1739450062146,0.75523662,2667.7,2667.4,0.74965]
[1739450062443,0.74963,2667.6,2667.3,6.54055591]
[1739450062649,0.00562662,2667.7,2667.4,0.74967]
[1739450062951,0.74965,2667.5,2667.3,7.29024591]
[1739450063247,0.00562662,2667.7,2667.3,7.29024591]
[1739450063248,0.74965,2667.6,2667.3,6.54055591]
[1739450063443,0.74966,2667.5,2667.3,6.54055591]
[1739450063644,0.74968,2667.4,2667.3,6.54055591]
[1739450063841,0.00562662,2667.7,2667.3,6.54055591]
[1739450064040,0.74966,2667.5,2667.3,7.29025591]
[1739450064242,0.74967,2667.5,2667.3,6.54055591]
[1739450064542,0.74968,2667.4,2667.3,3.2078]
[1739450065144,0.00562662,2667.7,2667.3,3.2078]
[1739450065440,0.00562662,2667.7,2667.3,6.54055591]
[1739450065641,0.75522662,2667.7,2667.5,0.74964]
[1739450065846,0.75523662,2667.7,2667.5,0.74964]
[1739450066050,0.75523662,2667.7,2667.3,6.54055591]
[1739450066246,0.00562662,2667.7,2667.6,0.74962]
[1739450066647,0.00562662,2667.7,2667.6,4.08237591]
[1739450067148,0.00562662,2667.7,2667.6,3.33275591]
[1739450067350,0.00562662,2667.7,2667.4,1.731]
[1739450067546,0.74965,2667.5,2667.4,1.731]
[1739450067951,0.74963,2667.6,2667.4,1.731]
[1739450068146,0.00562662,2667.7,2667.4,1.731]
[1739450068352,0.74964,2667.6,2667.4,2.48066]
[1739450068552,0.74962,2667.6,2667.4,2.48066]
[1739450068748,0.00562662,2667.7,2667.4,1.731]
[1739450068953,0.74965,2667.5,2667.4,2.48068]
[1739450069150,0.00562662,2667.7,2667.4,1.731]
[1739450069552,0.74965,2667.5,2667.4,1.731]
[1739450069753,0.00562662,2667.7,2667.4,1.731]
[1739450070057,0.74965,2667.5,2667.4,1.731]
[1739450070652,0.74968,2667.4,2667.3,3.33275591]
[1739450070857,0.74968,2667.4,2667.3,4.08246591]
[1739450071055,0.74968,2667.4,2667.3,3.33275591]
[1739450071355,3.2078,2667.6,2667.1,1.73662662]
[1739450071552,0.74974,2667.2,2667.1,2.48637662]
[1739450072056,0.74971,2667.4,2667.2,0.74971]
[1739450072265,3.2078,2667.6,2667.2,0.74971]
[1739450072266,0.74971,2667.3,2667.2,0.74971]
[1739450072452,3.2078,2667.6,2667.1,1.73662662]
[1739450072647,0.74974,2667.2,2667.1,0.00562662]
[1739450074048,3.2078,2667.6,2667.1,0.00562662]
[1739450074951,0.00257832,2667.4,2667.1,0.00562662]
[1739450075555,0.74974,2667.2,2667.1,0.75538662]
[1739450076059,0.74974,2667.2,2667.1,0.75537662]
[1739450076261,0.74974,2667.2,2667.1,0.00562662]
[1739450077149,0.74974,2667.2,2667.1,0.75538662]
[1739450077354,0.74974,2667.2,2667.1,0.00562662]
[1739450078061,6.74974,2667.2,2667.1,6.62e-06]
[1739450078652,7.32799373,2667.2,2667.1,6.62e-06]
[1739450079158,9.7641575,2667.2,2667.1,6.62e-06]
[1739450079763,9.0144175,2667.2,2665.8,6.54055591]
[1739450079960,3.2078,2666.3,2665.9,1.0965]
[1739450080554,1.1688,2666.2,2665.9,1.0965]
[1739450080755,1.1688,2666.2,2666.1,0.75005]
[1739450081560,0.00562662,2666.3,2665.9,42.4595]
[1739450081764,0.00562662,2666.3,2666.2,0.75002]
[1739450082569,0.00562662,2666.3,2666.2,41.55002]
[1739450084266,0.00562662,2666.3,2666.2,43.28102]
[1739450086469,0.00562662,2666.3,2666.2,42.531]
[1739450086664,0.00562662,2666.3,2666.2,43.28102]
[1739450086864,0.00562662,2666.3,2666.2,2.48102]
[1739450087171,0.00562662,2666.3,2666.2,1.731]
[1739450087360,0.00562662,2666.3,2666.2,2.48102]
[1739450090771,0.00562662,2666.3,2666.2,0.75002]
[1739450092672,2.995,2666.7,2666.6,0.7499]
[1739450092876,1.29587,2667.1,2667.0,0.74979]
[1739450093076,0.5461,2667.1,2667.0,0.74979]
[1739450093571,1.34842,2667.3,2667.1,0.74974]
[1739450093771,1.92074662,2667.3,2667.2,1.33344]
[1739450093972,1.92074662,2667.3,2667.2,0.5837]
[1739450095178,1.17102662,2667.3,2667.2,1.33344]
[1739450095379,1.92073662,2667.3,2667.2,1.33344]
[1739450095579,1.17102662,2667.3,2667.2,0.5837]
[1739450095875,1.17102662,2667.3,2667.2,1.33344]
[1739450096081,1.92073662,2667.3,2667.2,1.33344]
[1739450096280,1.92073662,2667.3,2667.2,0.5837]
[1739450096572,1.17102662,2667.3,2667.2,1.33344]
[1739450096778,1.92073662,2667.3,2667.2,1.33344]
[1739450097879,1.92073662,2667.3,2667.2,0.5837]
[1739450100985,1.92073662,2667.3,2667.2,1.33344]
[1739450101282,1.92073662,2667.3,2667.2,0.5837]
[1739450102375,0.60432662,2667.3,2667.2,1.33344]
[1739450102983,0.00562662,2667.3,2667.2,1.87694]
[1739450103480,0.00257832,2667.4,2667.3,0.74971]
[1739450103682,0.00257832,2667.4,2667.3,1.31181]
[1739450104183,0.75225832,2667.4,2667.3,0.5621]
[1739450104383,0.75225832,2667.4,2667.2,1.1272]
[1739450104384,0.00257832,2667.4,2667.2,1.1272]
[1739450104584,0.74971,2667.3,2667.2,1.1272]
[1739450104884,1.90051,2667.3,2667.2,0.5837]
[1739450105286,1.1508,2667.3,2667.0,2.2735]
[1739450105480,0.74979,2667.0,2666.9,0.5584]
[1739450105971,0.74982,2666.9,2666.8,3.2078]
[1739450106172,0.5866,2666.9,2666.4,3.2078]
[1739450106380,0.74993,2666.5,2666.4,3.2078]
[1739450106676,0.74993,2666.5,2665.8,3.21342662]
[1739450106677,3.33275591,2666.5,2665.8,3.21342662]
[1739450106882,0.75,2666.3,2666.0,0.75007]
[1739450107079,0.75007,2666.1,2665.9,0.5728]
[1739450107385,0.5552,2666.2,2665.9,0.5728]
[1739450107788,0.5552,2666.2,2666.1,0.75005]
[1739450108081,3.7944,2666.4,2666.3,0.74999]
[1739450108385,1.30509,2666.7,2666.4,0.74994]
[1739450108589,6.54055591,2666.5,2665.8,0.00562662]
[1739450108880,0.5866,2666.4,2665.9,0.5806]
[1739450109084,0.75002,2666.2,2666.0,0.75006]
[1739450109279,0.75,2666.3,2666.1,0.75004]
[1739450109475,0.5866,2666.4,2665.9,0.5806]
[1739450109981,0.75006,2666.1,2665.9,1.33069]
[1739450110184,0.5866,2666.4,2665.9,0.5806]
[1739450110384,0.75006,2666.1,2665.9,0.5806]
[1739450110585,0.75005,2666.1,2665.9,1.33069]
[1739450110779,0.75001,2666.3,2666.0,0.75005]
[1739450110981,1.33912,2666.2,2666.0,0.75005]
[1739450111180,1.33912,2666.2,2666.0,0.75006]
[1739450111582,1.33913,2666.2,2666.0,0.75007]
[1739450112275,0.75005,2666.1,2665.9,1.33068]
[1739450112486,0.75007,2666.0,2665.9,0.5806]
[1739450112791,0.7501,2665.9,2665.8,0.57842662]
[1739450113086,4.5404,2665.9,2665.8,0.00562662]
[1739450114291,1.3326,2665.9,2665.8,0.00562662]
[1739450115985,4.66535591,2665.9,2665.8,0.00562662]
[1739450116185,0.75024,2665.4,2665.3,3.2078]
[1739450118194,0.75027,2665.3,2665.2,0.75028]
[1739450118385,0.7503,2665.2,2665.1,0.75593662]
[1739450119090,3.79052662,2665.6,2665.1,0.75593662]
[1739450119384,0.75025,2665.4,2665.1,0.00562662]
[1739450119592,0.75025,2665.4,2665.3,0.75027]
[1739450119780,0.75025,2665.4,2665.2,0.75027]
[1739450119986,0.5679,2665.5,2665.1,0.00562662]
[1739450120387,0.75027,2665.3,2665.2,0.75028]
[1739450120591,0.5679,2665.5,2665.1,0.75593662]
[1739450120592,0.7503,2665.2,2665.1,0.75593662]
[1739450120793,0.5679,2665.5,2665.1,0.00562662]
[1739450120993,0.5679,2665.5,2665.4,0.75024]
[1739450121181,0.75025,2665.4,2665.3,0.75024]
[1739450121384,0.5679,2665.5,2665.1,0.56342662]
[1739450121580,0.7503,2665.2,2665.1,1.31373662]
[1739450122482,0.7503,2665.3,2665.2,0.75028]
[1739450122690,0.5718,2665.4,2665.1,0.56342662]
[1739450122992,0.7503,2665.2,2665.1,1.31372662]
[1739450123393,0.75028,2665.3,2665.2,0.75027]
[1739450123595,6.54618253,2665.6,2665.5,0.75021]
[1739450123596,3.96363662,2665.6,2665.5,0.75021]
[1739450123793,3.21342662,2665.6,2665.5,0.75021]
[1739450124494,0.00562662,2665.6,2665.5,0.75021]
[1739450124691,0.75581662,2665.6,2665.5,0.75021]
[1739450125696,0.00562662,2665.6,2665.5,0.75021]
[1739450126996,0.75581662,2665.6,2665.5,0.5904]
[1739450127893,0.75581662,2665.6,2665.2,6.54055591]
[1739450127894,3.21342662,2665.6,2665.2,3.2078]
[1739450128194,0.75026,2665.4,2665.3,0.75026]
[1739450128497,0.00562662,2665.6,2665.5,0.75021]
[1739450129396,0.00562662,2665.6,2665.5,3.95801]
[1739450129692,3.7709,2666.3,2665.5,6.54055591]
[1739450129897,0.5551,2666.6,2665.8,6.54055591]
[1739450130097,0.74988,2666.7,2666.5,0.74993]
[1739450130601,0.74988,2666.7,2666.6,0.5524]
[1739450131095,4.3193,2667.3,2666.6,3.7602]
[1739450131598,0.74975,2667.2,2666.9,0.7498]
[1739450131788,3.7689,2667.3,2666.8,1.73]
[1739450132184,3.2078,2667.3,2666.8,1.73]
[1739450132493,0.00257832,2667.4,2667.3,0.74971]
[1739450132696,0.00257832,2667.4,2667.3,4.25036034]
[1739450132896,0.00257832,2667.4,2667.3,3.2078]
[1739450133097,0.00257832,2667.4,2667.3,3.95751]
[1739450133904,1e-08,2667.4,2667.3,7.29026591]
[1739450134195,4.3193,2667.9,2667.3,7.29026591]
[1739450134196,4.3193,2667.9,2667.6,0.7496]
[1739450134394,5.06885,2667.9,2667.4,0.5934]
[1739450134593,4.3193,2667.9,2667.4,0.5934]
[1739450134800,0.74961,2667.7,2667.4,0.5934]
[1739450134997,0.74965,2667.5,2667.4,0.5934]
[1739450136091,0.74965,2667.5,2667.3,5.23514054]
[1739450136597,0.74958,2667.8,2667.4,0.74966]
[1739450137097,4.3193,2667.9,2667.3,5.98484054]
[1739450137098,0.74962,2667.7,2667.3,5.98484054]
[1739450137296,0.74962,2667.7,2667.4,0.74968]
[1739450137894,0.74964,2667.6,2667.3,5.98483054]
[1739450138093,4.3193,2667.9,2667.3,5.23514054]
[1739450138490,0.74968,2667.4,2667.3,4.9378]
[1739450138691,4.3193,2667.9,2667.3,4.9378]
[1739450138900,0.74967,2667.5,2667.3,4.9378]
[1739450139096,4.3193,2667.9,2667.3,5.98095904]
[1739450139401,0.74964,2667.6,2667.3,5.98095904]
[1739450139796,0.74964,2667.6,2667.3,5.23124904]
[1739450140103,4.3193,2667.9,2667.4,0.74968]
[1739450140304,4.3193,2667.9,2667.3,5.68751]
[1739450140501,3.2078,2667.6,2667.1,0.5934]
[1739450140805,0.74972,2667.3,2667.1,0.74975]
[1739450141303,0.74974,2667.2,2667.1,0.74975]
[1739450141602,0.74968,2667.4,2667.3,0.7497]
[1739450141796,0.7497,2667.4,2667.2,0.74973]
[1739450142007,0.7497,2667.4,2667.0,3.7744]
[1739450142303,0.74976,2667.1,2667.0,3.7744]
[1739450142498,5.08193,2667.6,2667.0,3.7744]
[1739450142707,5.08193,2667.6,2667.0,4.52417]
[1739450143206,0.74976,2667.1,2667.0,4.52419]
[1739450143399,0.74976,2667.1,2667.0,3.7744]
[1739450143706,0.74985,2666.8,2666.7,0.00562662]
[1739450144299,4.08260591,2666.8,2666.7,0.00562662]
[1739450144909,0.74985,2666.8,2666.7,0.00562662]
[1739450146105,0.74985,2666.8,2666.7,0.75550662]
[1739450146302,3.7757,2667.0,2666.7,0.00562662]
[1739450146605,3.2078,2667.0,2666.7,0.00562662]
[1739450146795,2.995,2667.1,2666.7,0.00562662]
[1739450146796,2.995,2667.1,2667.0,0.74979]
[1739450147305,0.564,2667.3,2667.2,0.74974]
[1739450147507,1.1465,2667.6,2667.3,0.74969]
[1739450147706,0.74967,2667.5,2667.3,0.74969]
[1739450147905,1.89614,2667.6,2667.5,0.74965]
[1739450148100,1.1465,2667.6,2667.1,0.5721]
[1739450148404,1.89614,2667.6,2667.4,0.74966]
[1739450148603,0.74966,2667.5,2667.3,3.2078]
[1739450148905,1.1465,2667.6,2667.3,3.2078]
[1739450149107,0.74962,2667.7,2667.5,0.74964]
[1739450149409,0.74964,2667.6,2667.4,0.74966]
[1739450149603,0.74964,2667.6,2667.5,0.74965]
[1739450150306,0.74964,2667.6,2667.4,0.74966]
[1739450150508,3.2078,2667.8,2667.3,3.2078]
[1739450150807,0.74964,2667.6,2667.4,0.74967]
[1739450151603,0.74964,2667.6,2667.5,0.74965]
[1739450152004,0.74964,2667.6,2667.3,3.2078]
[1739450152005,0.74964,2667.6,2667.4,0.74966]
[1739450152217,0.74965,2667.6,2667.4,0.74966]
[1739450152506,3.2078,2667.8,2667.4,0.74966]
[1739450152507,3.2078,2667.8,2667.4,2.47866]
[1739450152714,0.74964,2667.6,2667.4,2.47866]
[1739450152912,0.74964,2667.6,2667.4,1.729]
[1739450153111,0.74964,2667.6,2667.4,2.47866]
[1739450153308,3.2078,2667.8,2667.3,3.2078]
[1739450153604,0.74985,2666.8,2666.6,2.4789]
[1739450153809,0.74985,2666.8,2666.7,0.75550662]
[1739450154113,0.74983,2666.9,2666.7,0.75550662]
[1739450154306,1.1476,2667.1,2666.7,0.75550662]
[1739450154808,1.1476,2667.1,2666.7,0.00562662]
[1739450155510,0.74981,2667.0,2666.8,0.74983]
[1739450155700,1.1476,2667.1,2666.8,0.74983]
[1739450155907,1.1476,2667.1,2666.7,0.00562662]
[1739450156107,0.74983,2666.9,2666.7,0.00562662]
[1739450156309,0.7498,2667.0,2666.9,0.74981]
[1739450156608,0.7498,2667.0,2666.7,0.00562662]
[1739450156808,1.1476,2667.1,2666.9,0.7498]
[1739450157009,0.74983,2666.9,2666.8,0.74984]
[1739450157209,1.1476,2667.1,2666.7,0.00562662]
[1739450157403,1.89737,2667.1,2667.0,0.74979]
[1739450157613,1.1476,2667.1,2667.0,0.74979]
[1739450158004,1.1476,2667.1,2666.8,3.2078]
[1739450158205,0.74979,2667.0,2666.8,3.95763]
[1739450158399,0.74979,2667.0,2666.8,3.2078]
[1739450159209,1.30418,2667.1,2666.8,3.2078]
[1739450159414,0.7498,2667.0,2666.9,41.54981]
[1739450159809,0.5544,2667.1,2666.8,3.2078]
[1739450160000,0.74982,2666.9,2666.8,3.95763]
[1739450160314,0.74982,2666.9,2666.8,3.95765]
[1739450160511,0.74982,2666.9,2666.8,3.2078]
[1739450162615,0.74985,2666.8,2666.7,0.00562662]
[1739450162809,4.66010591,2666.8,2666.7,0.00562662]
[1739450163204,0.5775,2666.8,2666.7,0.00562662]
[1739450163402,1.32735,2666.8,2666.7,0.00562662]
[1739450163705,1.32735,2666.8,2666.7,0.75550662]
[1739450164101,5.99,2667.0,2666.7,0.00562662]
[1739450164300,0.74982,2667.0,2666.7,0.00562662]
[1739450164507,0.5544,2667.1,2666.7,0.00562662]
[1739450164812,0.74985,2666.8,2666.7,0.75548662]
[1739450165009,0.5544,2667.1,2666.7,0.00562662]
[1739450165317,0.5544,2667.1,2667.0,0.74979]
[1739450165318,1.30417,2667.1,2667.0,0.74979]
[1739450165515,0.5544,2667.1,2666.8,1.125]
[1739450165716,0.74982,2666.9,2666.8,1.125]
[1739450165909,0.74982,2666.9,2666.8,0.5688]
[1739450166310,0.5544,2667.1,2666.7,1.73362662]
[1739450166512,0.74985,2666.8,2666.7,0.00562662]
[1739450167907,4.08260591,2666.8,2666.7,0.00562662]
[1739450168313,4.66040591,2666.8,2666.7,0.00562662]
[1739450168607,0.75002,2666.2,2666.1,6.28153]
[1739450168813,0.75002,2666.2,2666.1,3.8035]
[1739450169009,3.91055591,2666.8,2666.2,0.75]
[1739450169010,0.75002,2666.3,2666.2,0.75]
[1739450170015,0.54832662,2666.5,2666.1,3.8035]
[1739450170213,0.75002,2666.2,2666.1,1.34571]
[1739450170517,0.75002,2666.2,2666.1,0.5957]
[1739450171415,0.75,2666.3,2666.2,0.75]
[1739450171619,0.5965,2666.4,2666.1,0.5957]
[1739450171820,1.34648,2666.4,2666.3,0.74999]
[1739450172112,0.5965,2666.4,2666.3,0.74999]
[1739450172315,0.54832662,2666.5,2666.4,0.74996]
[1739450172518,0.00562662,2666.5,2666.4,7.29051591]
[1739450173222,0.5566,2667.1,2666.4,8.26855591]
[1739450173409,0.7498,2667.0,2666.9,0.74981]
[1739450173819,0.74979,2667.0,2666.9,41.54981]
[1739450174017,0.74979,2667.0,2666.6,1.1478]
[1739450174221,0.74979,2667.0,2666.8,0.74983]
[1739450174424,0.5566,2667.1,2666.8,0.74983]
[1739450174620,0.5566,2667.1,2667.0,0.74979]
[1739450174915,0.5566,2667.1,2666.7,44.0078]
[1739450175120,0.5566,2667.1,2666.6,1.1478]
[1739450175121,3.88935591,2667.1,2666.6,0.5917]
[1739450175320,3.88935591,2667.1,2666.4,1.728]
[1739450175525,0.74993,2666.5,2666.4,1.728]
[1739450175918,0.74989,2666.7,2666.4,1.728]
[1739450176125,0.5657,2666.8,2666.3,3.2078]
[1739450176323,3.2078,2666.7,2666.2,0.5917]
[1739450176619,0.74998,2666.4,2666.2,1.34169]
[1739450176824,5.77312591,2666.8,2666.2,0.5917]
[1739450176825,0.74993,2666.6,2666.2,0.5917]
[1739450177122,0.5657,2666.8,2666.2,0.5917]
[1739450177433,0.5657,2666.8,2666.4,3.2078]
[1739450177620,0.74993,2666.5,2666.4,3.95774]
[1739450178326,2.44037,2666.8,2666.2,1.3417]
[1739450178520,2.44037,2666.8,2666.2,0.5917]
[1739450178521,0.74999,2666.3,2666.2,0.5917]
[1739450179328,0.5853,2666.4,2666.2,0.5917]
[1739450179523,0.5853,2666.4,2666.3,0.74999]
[1739450179824,0.5481,2666.5,2666.2,0.5917]
[1739450180128,0.74999,2666.3,2666.2,0.5917]
[1739450180524,0.74999,2666.3,2666.2,1.34172]
[1739450180722,0.74999,2666.3,2666.2,0.5917]
[1739450182632,0.74999,2666.3,2666.2,1.34169]
[1739450183027,0.5853,2666.4,2666.3,0.74999]
[1739450183228,3.2078,2666.7,2666.2,0.5917]
[1739450183429,0.7499,2666.7,2666.3,0.5686]
[1739450183726,3.78692834,2667.0,2666.3,0.5686]
[1739450183926,0.74992,2666.6,2666.5,0.74993]
[1739450184126,0.74986,2666.8,2666.7,0.74986]
[1739450184326,3.2078,2667.0,2666.6,0.5408]
[1739450184630,0.74988,2666.7,2666.6,1.29069]
[1739450185229,3.2078,2667.0,2666.6,0.5408]
[1739450185428,0.74988,2666.7,2666.6,0.5408]
[1739450185933,3.2078,2667.0,2666.6,0.5408]
[1739450186134,0.74988,2666.7,2666.6,1.29069]
[1739450186335,3.2078,2667.0,2666.6,0.5408]
[1739450186537,0.74983,2666.9,2666.8,0.74982]
[1739450186732,3.2078,2667.0,2666.6,0.5408]
[1739450186937,0.74986,2666.8,2666.7,0.74987]
[1739450187331,3.2078,2667.0,2666.6,2.2688]
[1739450187628,0.74988,2666.7,2666.6,1.728]
[1739450188028,0.74988,2666.7,2666.6,2.4779]
[1739450188233,3.2078,2667.0,2666.6,1.728]
[1739450188434,0.74987,2666.8,2666.7,0.74988]
[1739450188738,3.2078,2667.0,2666.6,2.302]
[1739450188940,0.74983,2666.9,2666.8,0.74984]
[1739450189238,3.95761,2667.0,2666.9,0.74982]
[1739450189433,3.95759,2667.0,2666.9,0.74982]
[1739450190133,1.1126,2667.3,2666.8,3.2078]
[1739450190334,0.74978,2667.1,2667.0,0.74979]
[1739450190936,1.1126,2667.3,2666.9,0.7498]
[1739450191131,1.1126,2667.3,2666.8,3.2078]
[1739450191337,0.74982,2666.9,2666.8,3.2078]
[1739450191840,1.1126,2667.3,2666.8,3.2078]
[1739450192032,0.74981,2667.0,2666.9,0.7498]
[1739450192644,0.74978,2667.1,2667.0,0.74978]
[1739450193144,1.1126,2667.3,2666.8,3.2078]
[1739450193344,0.74978,2667.1,2667.0,0.74978]
[1739450195444,0.74979,2667.1,2667.0,0.74979]
[1739450195844,1.1126,2667.3,2666.8,3.2078]
[1739450195845,2.98693,2667.3,2666.8,3.2078]
[1739450196145,0.74981,2667.0,2666.9,0.74981]
[1739450196552,0.74975,2667.2,2667.1,0.74975]
[1739450196753,0.74975,2667.2,2666.9,0.5449]
[1739450196754,0.74979,2667.0,2666.9,0.5449]
[1739450196950,2.98693,2667.3,2666.8,3.2078]
[1739450197256,0.74981,2667.0,2666.9,0.74981]
[1739450197552,0.74978,2667.1,2667.0,0.74978]
[1739450199148,0.74976,2667.2,2667.1,0.74975]
[1739450199348,1.1126,2667.3,2666.8,3.2078]
[1739450199551,0.74976,2667.2,2667.1,0.74975]
[1739450200355,0.74976,2667.2,2666.8,5.0824]
[1739450200356,0.74981,2667.0,2666.9,0.74981]
[1739450201054,1.1126,2667.3,2666.8,3.2078]
[1739450201248,0.74978,2667.1,2667.0,0.74977]
[1739450201945,0.74978,2667.1,2666.8,3.2078]
[1739450201946,1.1126,2667.3,2667.2,0.74974]
[1739450202257,0.74978,2667.1,2667.0,0.74977]
[1739450202455,0.74978,2667.1,2667.0,1.1541]
[1739450205751,0.74978,2667.1,2667.0,1.90389]
[1739450206554,1.1126,2667.3,2667.0,1.1541]
[1739450206755,0.74976,2667.2,2667.1,0.74975]
[1739450206954,0.74976,2667.1,2667.0,1.90388]
[1739450208160,0.74976,2667.1,2667.0,1.1541]
[1739450210861,1.1126,2667.3,2666.8,3.2078]
[1739450211062,0.74982,2666.9,2666.8,3.2078]
[1739450212954,0.7499,2666.6,2666.5,2.8696]
[1739450213354,0.7499,2666.6,2666.5,3.61953]
[1739450213554,0.7499,2666.7,2666.6,0.7499]
[1739450214359,0.5993,2666.8,2666.5,2.8696]
[1739450214554,0.7499,2666.6,2666.5,3.61953]
[1739450214755,0.5534,2666.9,2666.5,2.8696]
[1739450215061,0.74988,2666.7,2666.6,1.30589]
[1739450215457,0.5534,2666.9,2666.6,0.556]
[1739450215759,0.5659,2667.3,2666.7,5.08248]
[1739450215958,0.74978,2667.1,2667.0,0.74977]
[1739450216293,0.74976,2667.1,2667.0,0.74977]
[1739450216683,0.7498,2667.0,2666.9,0.74979]
[1739450217368,0.74978,2667.1,2667.0,0.74978]
[1739450218160,0.7498,2667.0,2666.9,0.7498]
[1739450218763,0.5655,2667.2,2666.7,3.2078]
[1739450218962,3.2078,2667.3,2667.0,0.74977]
[1739450219262,0.74974,2667.2,2667.0,0.74977]
[1739450219457,3.7561,2667.3,2667.0,0.74978]
[1739450220257,0.74974,2667.2,2667.1,0.74976]
[1739450220560,0.74974,2667.2,2666.7,8.41521591]
[1739450220763,1.87435,2667.2,2666.7,3.2078]
[1739450220960,0.74985,2666.8,2666.7,3.2078]
[1739450221157,0.5958,2667.1,2666.6,0.556]
[1739450221564,0.74987,2666.8,2666.6,1.30588]
[1739450221867,0.74988,2666.7,2666.6,1.30588]
[1739450222068,2.47025,2667.1,2666.5,1.32722]
[1739450222271,1.17555718,2667.1,2666.5,0.5773]
[1739450222458,0.7499,2666.6,2666.5,1.32721]
[1739450222659,1.87459,2666.9,2666.4,3.2078]
[1739450222854,0.74993,2666.5,2666.4,3.2078]
[1739450223055,0.5898,2666.8,2666.4,3.2078]
[1739450223260,0.74995,2666.5,2666.4,0.74994]
[1739450223559,0.74995,2666.5,2666.4,3.95776]
[1739450223753,0.74995,2666.5,2666.3,0.5878]
[1739450223957,0.74996,2666.4,2666.3,1.33777]
[1739450224163,0.74995,2666.5,2666.3,1.33777]
[1739450224565,0.5423,2666.7,2666.3,0.5878]
[1739450224760,0.74994,2666.5,2666.4,0.74995]
[1739450225669,0.74992,2666.6,2666.5,0.74992]
[1739450225960,0.74991,2666.6,2666.5,0.74992]
[1739450226159,1.2922,2666.7,2666.5,0.74992]
[1739450226359,0.7499,2666.6,2666.5,0.74992]
[1739450226559,1.29218,2666.7,2666.6,0.7499]
[1739450226766,1.29218,2666.7,2666.4,3.2078]
[1739450226767,0.5423,2666.7,2666.4,3.2078]
[1739450227062,1.33966,2666.8,2666.7,0.74988]
[1739450227969,0.5898,2666.8,2666.4,6.54055591]
[1739450228159,0.74988,2666.7,2666.4,6.54055591]
[1739450228465,0.5898,2666.8,2666.4,6.54055591]
[1739450228661,0.5898,2666.8,2666.4,3.95773]
[1739450228866,0.5898,2666.8,2666.4,3.2078]
[1739450229071,0.74992,2666.6,2666.5,0.74993]
[1739450229365,0.74993,2666.5,2666.4,3.95775]
[1739450229565,0.74993,2666.5,2666.4,3.2078]
[1739450229955,0.74993,2666.5,2666.4,3.95776]
[1739450230157,0.5898,2666.8,2666.4,3.2078]
[1739450230569,0.74993,2666.5,2666.4,3.2078]
[1739450230961,0.74996,2666.4,2666.3,0.74998]
[1739450231569,0.74999,2666.3,2666.2,0.5887]
[1739450231867,0.74999,2666.3,2666.2,1.33872]
[1739450232070,0.74999,2666.3,2666.2,0.5887]
[1739450232765,0.75002,2666.3,2666.0,4.93942662]
[1739450232964,1.29763,2666.2,2666.1,0.75003]